[Event "Titled Tuesday Blitz October 19 2021"]
[White "Harshavardhan G B"]
[Black "Le, Tuan Minh"]
[WhiteFideId "25059009"]
[BlackFideId "12401153"]
[WhiteElo "1825"]
[BlackElo "2450"]
[Result "0-1"]
[Round "06"]
[TimeControl "180+1"]
[Date "2021.10.19"]
[WhiteClock "0:00:08"]
[BlackClock "0:00:05"]

1. d4 {[%clk 0:03:00]}  Nf6 {[%clk 0:02:55]} 2. c4 {[%clk 0:03:00]}  Nc6 {[%clk 0:02:55]} 3. Nf3 {[%clk 0:02:59]}  e6 {[%clk 0:02:52]} 4. a3 {[%clk 0:02:58]}  g6 {[%clk 0:02:51]} 5. Nc3 {[%clk 0:02:57]}  Bg7 {[%clk 0:02:51]} 6. e4 {[%clk 0:02:57]}  d6 {[%clk 0:02:50]} 7. Be2 {[%clk 0:02:56]}  O-O {[%clk 0:02:50]} 8. O-O {[%clk 0:02:56]}  e5 {[%clk 0:02:51]} 9. d5 {[%clk 0:02:55]}  Nd4 {[%clk 0:02:26]} 10. Nxd4 {[%clk 0:02:49]}  exd4 {[%clk 0:02:27]} 11. Qxd4 {[%clk 0:02:49]}  Re8 {[%clk 0:02:25]} 12. Qd3 {[%clk 0:02:44]}  Qe7 {[%clk 0:02:24]} 13. f3 {[%clk 0:02:33]}  Nd7 {[%clk 0:02:09]} 14. Qc2 {[%clk 0:02:18]}  f5 {[%clk 0:02:01]} 15. Bd3 {[%clk 0:01:54]}  Nc5 {[%clk 0:01:59]} 16. Be3 {[%clk 0:01:44]}  fxe4 {[%clk 0:01:19]} 17. fxe4 {[%clk 0:01:25]}  Bd7 {[%clk 0:01:17]} 18. Rae1 {[%clk 0:01:19]}  a5 {[%clk 0:01:15]} 19. b4 {[%clk 0:01:01]}  axb4 {[%clk 0:01:14]} 20. axb4 {[%clk 0:01:02]}  Ra3 {[%clk 0:00:51]} 21. bxc5 {[%clk 0:00:39]}  Rxc3 {[%clk 0:00:51]} 22. Qb1 {[%clk 0:00:39]}  dxc5 {[%clk 0:00:46]} 23. Bd2 {[%clk 0:00:37]}  Ra3 {[%clk 0:00:45]} 24. Bc1 {[%clk 0:00:23]}  Bd4+ {[%clk 0:00:35]} 25. Kh1 {[%clk 0:00:22]}  Rc3 {[%clk 0:00:32]} 26. e5 {[%clk 0:00:22]}  Bxe5 {[%clk 0:00:18]} 27. Bd2 {[%clk 0:00:20]}  Ra3 {[%clk 0:00:16]} 28. Bf4 {[%clk 0:00:20]}  Qd6 {[%clk 0:00:16]} 29. Rxe5 {[%clk 0:00:19]}  Rxe5 {[%clk 0:00:16]} 30. Qb2 {[%clk 0:00:19]}  Rxd3 {[%clk 0:00:12]} 31. Bxe5 {[%clk 0:00:20]}  Qe7 {[%clk 0:00:11]} 32. Bxc7 {[%clk 0:00:20]}  Bf5 {[%clk 0:00:10]} 33. Qxb7 {[%clk 0:00:18]}  h5 {[%clk 0:00:06]} 34. Qb8+ {[%clk 0:00:18]}  Qf8 {[%clk 0:00:03]} 35. Qb6 {[%clk 0:00:17]}  Qe8 {[%clk 0:00:02]} 36. Qf6 {[%clk 0:00:16]}  Qe2 {[%clk 0:00:02]} 37. Qa1 {[%clk 0:00:16]}  Rd2 {[%clk 0:00:02]} 38. Rg1 {[%clk 0:00:15]}  Be4 {[%clk 0:00:03]} 39. Qf1 {[%clk 0:00:08]}  Qxf1 {[%clk 0:00:02]} 40. Rxf1 {[%clk 0:00:09]}  Bxg2+ {[%clk 0:00:03]} 41. Kg1 {[%clk 0:00:10]}  Bxf1 {[%clk 0:00:03]} 42. Kxf1 {[%clk 0:00:10]}  Rd4 {[%clk 0:00:03]} 43. Ke2 {[%clk 0:00:09]}  Kf7 {[%clk 0:00:03]} 44. Ke3 {[%clk 0:00:08]}  Rxc4 {[%clk 0:00:03]} 45. Bd6 {[%clk 0:00:07]}  Rd4 {[%clk 0:00:03]} 46. Bxc5 {[%clk 0:00:06]}  Rxd5 {[%clk 0:00:04]} 47. Bd4 {[%clk 0:00:07]}  Ke6 {[%clk 0:00:04]} 48. Ke4 {[%clk 0:00:08]}  Ra5 {[%clk 0:00:04]} 49. Be3 {[%clk 0:00:08]}  Ra4+ {[%clk 0:00:04]} 50. Kf3 {[%clk 0:00:08]}  Kf5 {[%clk 0:00:05]} 0-1


[Site "https://www.chess.com"]

[Event "Titled Tuesday Blitz October 19 2021"]
[White "Indjic, Aleksandar"]
[Black "Samunenkov, Ihor"]
[WhiteFideId "911925"]
[BlackFideId "14187086"]
[WhiteElo "2643"]
[BlackElo "2305"]
[Result "1-0"]
[Round "06"]
[TimeControl "180+1"]
[Date "2021.10.19"]
[WhiteClock "0:02:01"]
[BlackClock "0:01:59"]

1. d4 {[%clk 0:03:00]}  Nf6 {[%clk 0:02:59]} 2. Nf3 {[%clk 0:02:59]}  e6 {[%clk 0:02:59]} 3. Bf4 {[%clk 0:02:58]}  d5 {[%clk 0:02:59]} 4. e3 {[%clk 0:02:57]}  Bd6 {[%clk 0:02:59]} 5. Nbd2 {[%clk 0:02:57]}  O-O {[%clk 0:02:59]} 6. Ne5 {[%clk 0:02:50]}  c5 {[%clk 0:02:55]} 7. c3 {[%clk 0:02:49]}  Qc7 {[%clk 0:02:54]} 8. Bd3 {[%clk 0:02:48]}  Nbd7 {[%clk 0:02:44]} 9. Ndf3 {[%clk 0:02:46]}  Ne4 {[%clk 0:02:44]} 10. Qb1 {[%clk 0:02:31]}  Ndf6 {[%clk 0:02:41]} 11. h4 {[%clk 0:02:27]}  b6 {[%clk 0:02:30]} 12. Ng5 {[%clk 0:02:21]}  cxd4 {[%clk 0:02:05]} 13. exd4 {[%clk 0:02:18]}  Bb7 {[%clk 0:02:00]} 14. f3 {[%clk 0:02:17]}  Nxc3 {[%clk 0:02:00]} 15. bxc3 {[%clk 0:02:04]}  Qxc3+ {[%clk 0:02:01]} 16. Bd2 {[%clk 0:02:02]}  Qxd4 {[%clk 0:01:59]} 17. Bxh7+ {[%clk 0:02:01]} 1-0


[Site "https://www.chess.com"]

[Event "Titled Tuesday Blitz October 19 2021"]
[White "Jaracz, Pawel"]
[Black "Nguyen, Ngoc Truong Son"]
[WhiteFideId "1102222"]
[BlackFideId "12401110"]
[WhiteElo "2495"]
[BlackElo "2596"]
[Result "1-0"]
[Round "06"]
[TimeControl "180+1"]
[Date "2021.10.19"]
[WhiteClock "0:00:21"]
[BlackClock "0:00:01"]

1. e4 {[%clk 0:03:00]}  e5 {[%clk 0:02:59]} 2. Nf3 {[%clk 0:03:01]}  Nf6 {[%clk 0:03:00]} 3. Nxe5 {[%clk 0:03:00]}  d6 {[%clk 0:03:00]} 4. Nf3 {[%clk 0:03:01]}  Nxe4 {[%clk 0:03:01]} 5. Nc3 {[%clk 0:03:01]}  Nf6 {[%clk 0:03:00]} 6. d4 {[%clk 0:03:01]}  g6 {[%clk 0:03:00]} 7. Bg5 {[%clk 0:03:01]}  Bg7 {[%clk 0:02:58]} 8. Qd2 {[%clk 0:03:01]}  h6 {[%clk 0:02:55]} 9. Be3 {[%clk 0:02:58]}  Nc6 {[%clk 0:02:39]} 10. O-O-O {[%clk 0:02:56]}  Ne7 {[%clk 0:02:29]} 11. h3 {[%clk 0:02:55]}  Be6 {[%clk 0:02:16]} 12. g4 {[%clk 0:02:48]}  c6 {[%clk 0:02:04]} 13. Bd3 {[%clk 0:02:19]}  b5 {[%clk 0:02:01]} 14. Ne4 {[%clk 0:02:14]}  Nfd5 {[%clk 0:01:45]} 15. Bf4 {[%clk 0:02:01]}  Nc8 {[%clk 0:01:16]} 16. Rde1 {[%clk 0:01:57]}  Nxf4 {[%clk 0:01:08]} 17. Qxf4 {[%clk 0:01:57]}  O-O {[%clk 0:01:08]} 18. h4 {[%clk 0:01:53]}  Bd5 {[%clk 0:00:48]} 19. g5 {[%clk 0:01:52]}  h5 {[%clk 0:00:44]} 20. Nf6+ {[%clk 0:01:50]}  Bxf6 {[%clk 0:00:31]} 21. gxf6 {[%clk 0:01:51]}  Bxf3 {[%clk 0:00:21]} 22. Qxf3 {[%clk 0:01:46]}  Re8 {[%clk 0:00:20]} 23. Qxc6 {[%clk 0:01:42]}  Rxe1+ {[%clk 0:00:14]} 24. Rxe1 {[%clk 0:01:43]}  Nb6 {[%clk 0:00:15]} 25. Re7 {[%clk 0:01:43]}  Rc8 {[%clk 0:00:08]} 26. Qb7 {[%clk 0:01:31]}  Qf8 {[%clk 0:00:08]} 27. Qe4 {[%clk 0:01:02]}  d5 {[%clk 0:00:04]} 28. Qf4 {[%clk 0:01:00]}  Re8 {[%clk 0:00:03]} 29. Rxa7 {[%clk 0:00:49]}  Nc4 {[%clk 0:00:02]} 30. c3 {[%clk 0:00:35]}  Re1+ {[%clk 0:00:02]} 31. Kc2 {[%clk 0:00:35]}  Qe8 {[%clk 0:00:01]} 32. Qf3 {[%clk 0:00:25]}  Re6 {[%clk 0:00:01]} 33. b3 {[%clk 0:00:21]} 1-0


[Site "https://www.chess.com"]

[Event "Titled Tuesday Blitz October 19 2021"]
[White "Kamsky, Gata"]
[Black "Djordjevic, Vuk"]
[WhiteFideId "2000024"]
[BlackFideId "902098"]
[WhiteElo "2603"]
[BlackElo "2463"]
[Result "1-0"]
[Round "06"]
[TimeControl "180+1"]
[Date "2021.10.19"]
[WhiteClock "0:01:02"]
[BlackClock "0:00:07"]

1. d4 {[%clk 0:03:00]}  Nf6 {[%clk 0:02:59]} 2. Nf3 {[%clk 0:03:00]}  e6 {[%clk 0:02:59]} 3. Bf4 {[%clk 0:02:58]}  d5 {[%clk 0:02:59]} 4. e3 {[%clk 0:02:54]}  Bd6 {[%clk 0:02:58]} 5. Ne5 {[%clk 0:02:52]}  O-O {[%clk 0:02:51]} 6. Nd2 {[%clk 0:02:52]}  c5 {[%clk 0:02:48]} 7. c3 {[%clk 0:02:53]}  Qc7 {[%clk 0:02:35]} 8. Bd3 {[%clk 0:02:51]}  Nbd7 {[%clk 0:02:35]} 9. Ndf3 {[%clk 0:02:51]}  Ne4 {[%clk 0:02:35]} 10. Qc2 {[%clk 0:02:49]}  f5 {[%clk 0:02:29]} 11. Nxd7 {[%clk 0:02:48]}  Bxd7 {[%clk 0:02:22]} 12. Bxd6 {[%clk 0:02:47]}  Qxd6 {[%clk 0:02:21]} 13. Bxe4 {[%clk 0:02:45]}  fxe4 {[%clk 0:02:11]} 14. Ne5 {[%clk 0:02:45]}  Bb5 {[%clk 0:02:11]} 15. O-O-O {[%clk 0:02:23]}  cxd4 {[%clk 0:01:50]} 16. exd4 {[%clk 0:02:23]}  Rac8 {[%clk 0:01:40]} 17. Kb1 {[%clk 0:02:21]}  a5 {[%clk 0:01:33]} 18. Rhe1 {[%clk 0:02:16]}  Be8 {[%clk 0:01:24]} 19. Qd2 {[%clk 0:02:05]}  b5 {[%clk 0:01:22]} 20. Rc1 {[%clk 0:01:58]}  Bh5 {[%clk 0:01:06]} 21. h4 {[%clk 0:01:39]}  Qe7 {[%clk 0:00:56]} 22. g4 {[%clk 0:01:38]}  Bg6 {[%clk 0:00:50]} 23. h5 {[%clk 0:01:33]}  Be8 {[%clk 0:00:36]} 24. Qe3 {[%clk 0:01:29]}  Qf6 {[%clk 0:00:34]} 25. Rf1 {[%clk 0:01:27]}  Qf4 {[%clk 0:00:29]} 26. Qxf4 {[%clk 0:01:21]}  Rxf4 {[%clk 0:00:30]} 27. f3 {[%clk 0:01:20]}  h6 {[%clk 0:00:16]} 28. Rce1 {[%clk 0:01:17]}  b4 {[%clk 0:00:14]} 29. fxe4 {[%clk 0:01:11]}  Rxf1 {[%clk 0:00:13]} 30. Rxf1 {[%clk 0:01:11]}  bxc3 {[%clk 0:00:12]} 31. exd5 {[%clk 0:01:07]}  exd5 {[%clk 0:00:09]} 32. Rc1 {[%clk 0:01:06]}  Bb5 {[%clk 0:00:07]} 33. Rxc3 {[%clk 0:01:05]}  Rf8 {[%clk 0:00:08]} 34. Rc5 {[%clk 0:01:04]}  Rf1+ {[%clk 0:00:07]} 35. Kc2 {[%clk 0:01:04]}  Rf2+ {[%clk 0:00:07]} 36. Kc3 {[%clk 0:01:03]}  Be2 {[%clk 0:00:07]} 37. Rxa5 {[%clk 0:01:02]} 1-0


[Site "https://www.chess.com"]

[Event "Titled Tuesday Blitz October 19 2021"]
[White "Kovalev, Vladislav"]
[Black "Iskusnyh, Sergei"]
[WhiteFideId "13504398"]
[BlackFideId "4120027"]
[WhiteElo "2573"]
[BlackElo "2492"]
[Result "1-0"]
[Round "06"]
[TimeControl "180+1"]
[Date "2021.10.19"]
[WhiteClock "0:00:03"]
[BlackClock "0:00:02"]

1. e4 {[%clk 0:03:00]}  e6 {[%clk 0:03:00]} 2. d4 {[%clk 0:03:01]}  d5 {[%clk 0:03:00]} 3. Bd3 {[%clk 0:03:01]}  c5 {[%clk 0:03:00]} 4. exd5 {[%clk 0:03:00]}  exd5 {[%clk 0:03:00]} 5. Nf3 {[%clk 0:03:01]}  Nf6 {[%clk 0:02:59]} 6. O-O {[%clk 0:03:01]}  Nc6 {[%clk 0:02:41]} 7. Re1+ {[%clk 0:03:01]}  Be7 {[%clk 0:02:40]} 8. dxc5 {[%clk 0:03:01]}  O-O {[%clk 0:02:40]} 9. Be3 {[%clk 0:03:02]}  Ng4 {[%clk 0:02:37]} 10. Nbd2 {[%clk 0:02:11]}  Nxe3 {[%clk 0:02:32]} 11. Rxe3 {[%clk 0:02:12]}  Bxc5 {[%clk 0:02:30]} 12. Re2 {[%clk 0:01:59]}  Qf6 {[%clk 0:02:25]} 13. c3 {[%clk 0:01:55]}  Bb6 {[%clk 0:02:20]} 14. Qc2 {[%clk 0:01:54]}  h6 {[%clk 0:02:20]} 15. h3 {[%clk 0:01:45]}  Be6 {[%clk 0:02:16]} 16. Rae1 {[%clk 0:01:44]}  Rac8 {[%clk 0:02:14]} 17. Qa4 {[%clk 0:01:42]}  Rfd8 {[%clk 0:02:03]} 18. a3 {[%clk 0:01:32]}  g6 {[%clk 0:01:54]} 19. Qh4 {[%clk 0:01:15]}  Kg7 {[%clk 0:01:49]} 20. Qxf6+ {[%clk 0:01:09]}  Kxf6 {[%clk 0:01:49]} 21. Nh2 {[%clk 0:01:08]}  h5 {[%clk 0:01:46]} 22. Nhf3 {[%clk 0:01:04]}  g5 {[%clk 0:01:46]} 23. h4 {[%clk 0:00:45]}  gxh4 {[%clk 0:01:39]} 24. Nxh4 {[%clk 0:00:44]}  Rg8 {[%clk 0:01:40]} 25. Kh2 {[%clk 0:00:41]}  Rg4 {[%clk 0:01:35]} 26. g3 {[%clk 0:00:41]}  Bc7 {[%clk 0:01:29]} 27. Ndf3 {[%clk 0:00:38]}  Rcg8 {[%clk 0:01:27]} 28. Kh1 {[%clk 0:00:31]}  Bb6 {[%clk 0:01:06]} 29. Nh2 {[%clk 0:00:23]}  R4g5 {[%clk 0:01:02]} 30. N2f3 {[%clk 0:00:22]}  Rg4 {[%clk 0:01:02]} 31. Nh2 {[%clk 0:00:23]}  R4g7 {[%clk 0:01:00]} 32. N2f3 {[%clk 0:00:21]}  Bg4 {[%clk 0:01:00]} 33. Rd2 {[%clk 0:00:18]}  Rd8 {[%clk 0:00:53]} 34. Bb5 {[%clk 0:00:13]}  Rgg8 {[%clk 0:00:52]} 35. Kg2 {[%clk 0:00:11]}  Rge8 {[%clk 0:00:51]} 36. Rxe8 {[%clk 0:00:11]}  Rxe8 {[%clk 0:00:51]} 37. Rxd5 {[%clk 0:00:09]}  a6 {[%clk 0:00:39]} 38. Rd6+ {[%clk 0:00:08]}  Re6 {[%clk 0:00:38]} 39. Rxe6+ {[%clk 0:00:07]}  Bxe6 {[%clk 0:00:38]} 40. Bd3 {[%clk 0:00:06]}  Bd5 {[%clk 0:00:38]} 41. Kf1 {[%clk 0:00:06]}  Ne5 {[%clk 0:00:36]} 42. Nxe5 {[%clk 0:00:06]}  Kxe5 {[%clk 0:00:36]} 43. Be2 {[%clk 0:00:05]}  f5 {[%clk 0:00:21]} 44. f4+ {[%clk 0:00:04]}  Kf6 {[%clk 0:00:15]} 45. Bxh5 {[%clk 0:00:05]}  Be3 {[%clk 0:00:15]} 46. Ke2 {[%clk 0:00:03]}  Bc1 {[%clk 0:00:14]} 47. b4 {[%clk 0:00:04]}  Bxa3 {[%clk 0:00:14]} 48. Kd2 {[%clk 0:00:04]}  b6 {[%clk 0:00:13]} 49. Be2 {[%clk 0:00:05]}  a5 {[%clk 0:00:12]} 50. bxa5 {[%clk 0:00:06]}  bxa5 {[%clk 0:00:13]} 51. Bd3 {[%clk 0:00:06]}  Be6 {[%clk 0:00:12]} 52. Bb5 {[%clk 0:00:07]}  Bc5 {[%clk 0:00:11]} 53. Ke2 {[%clk 0:00:07]}  Bb3 {[%clk 0:00:10]} 54. Nf3 {[%clk 0:00:07]}  a4 {[%clk 0:00:10]} 55. Nd2 {[%clk 0:00:08]}  Bc2 {[%clk 0:00:09]} 56. Bc4 {[%clk 0:00:04]}  a3 {[%clk 0:00:09]} 57. Ba2 {[%clk 0:00:04]}  Bb6 {[%clk 0:00:07]} 58. Kf3 {[%clk 0:00:05]}  Bc5 {[%clk 0:00:07]} 59. g4 {[%clk 0:00:05]}  fxg4+ {[%clk 0:00:07]} 60. Kxg4 {[%clk 0:00:06]}  Be3 {[%clk 0:00:07]} 61. Nc4 {[%clk 0:00:05]}  Bd1+ {[%clk 0:00:07]} 62. Kg3 {[%clk 0:00:05]}  Bc1 {[%clk 0:00:07]} 63. Nd6 {[%clk 0:00:04]}  Bc2 {[%clk 0:00:06]} 64. Kf3 {[%clk 0:00:04]}  Bd2 {[%clk 0:00:06]} 65. Nb5 {[%clk 0:00:02]}  Bc1 {[%clk 0:00:06]} 66. Nd4 {[%clk 0:00:03]}  Bd1+ {[%clk 0:00:05]} 67. Ke4 {[%clk 0:00:03]}  Bb2 {[%clk 0:00:04]} 68. Nb5 {[%clk 0:00:03]}  Be2 {[%clk 0:00:04]} 69. c4 {[%clk 0:00:04]}  Bf1 {[%clk 0:00:04]} 70. Kd5 {[%clk 0:00:04]}  Bg2+ {[%clk 0:00:03]} 71. Kd6 {[%clk 0:00:04]}  Bc1 {[%clk 0:00:03]} 72. c5 {[%clk 0:00:02]}  Bxf4+ {[%clk 0:00:03]} 73. Kd7 {[%clk 0:00:03]}  Bc1 {[%clk 0:00:02]} 74. Nd6 {[%clk 0:00:03]}  Bh3+ {[%clk 0:00:02]} 75. Kc7 {[%clk 0:00:03]} 1-0


[Site "https://www.chess.com"]

[Event "Titled Tuesday Blitz October 19 2021"]
[White "Kuegel, Tobias"]
[Black "Ozen, Bahadir"]
[WhiteFideId "4636295"]
[BlackFideId "6337058"]
[WhiteElo "2504"]
[BlackElo "2503"]
[Result "0-1"]
[Round "06"]
[TimeControl "180+1"]
[Date "2021.10.19"]
[WhiteClock "0:00:01"]
[BlackClock "0:00:44"]

1. e4 {[%clk 0:02:58]}  e6 {[%clk 0:03:00]} 2. d4 {[%clk 0:02:58]}  d5 {[%clk 0:03:00]} 3. Nd2 {[%clk 0:02:57]}  c5 {[%clk 0:02:59]} 4. exd5 {[%clk 0:02:57]}  exd5 {[%clk 0:03:00]} 5. Ngf3 {[%clk 0:02:57]}  Nf6 {[%clk 0:03:00]} 6. Bb5+ {[%clk 0:02:57]}  Bd7 {[%clk 0:03:00]} 7. Qe2+ {[%clk 0:02:57]}  Be7 {[%clk 0:02:57]} 8. dxc5 {[%clk 0:02:46]}  O-O {[%clk 0:02:56]} 9. O-O {[%clk 0:02:41]}  Bxc5 {[%clk 0:02:55]} 10. Nb3 {[%clk 0:02:36]}  Re8 {[%clk 0:02:53]} 11. Qd3 {[%clk 0:02:35]}  Bb6 {[%clk 0:02:50]} 12. Bxd7 {[%clk 0:02:30]}  Nbxd7 {[%clk 0:02:49]} 13. Bg5 {[%clk 0:02:22]}  Qc7 {[%clk 0:02:41]} 14. c3 {[%clk 0:02:09]}  Re4 {[%clk 0:02:34]} 15. Bh4 {[%clk 0:01:59]}  Rae8 {[%clk 0:02:30]} 16. Bg3 {[%clk 0:01:56]}  Qc8 {[%clk 0:02:29]} 17. Nfd2 {[%clk 0:01:22]}  R4e7 {[%clk 0:02:12]} 18. Nf3 {[%clk 0:01:17]}  Re4 {[%clk 0:01:46]} 19. Nfd2 {[%clk 0:01:14]}  Ra4 {[%clk 0:01:38]} 20. a3 {[%clk 0:01:04]}  Rg4 {[%clk 0:01:32]} 21. Rfe1 {[%clk 0:00:52]}  Nf8 {[%clk 0:01:32]} 22. Nf3 {[%clk 0:00:33]}  Ng6 {[%clk 0:01:25]} 23. Rxe8+ {[%clk 0:00:29]}  Qxe8 {[%clk 0:01:26]} 24. Re1 {[%clk 0:00:29]}  Re4 {[%clk 0:01:25]} 25. Rf1 {[%clk 0:00:26]}  h5 {[%clk 0:01:03]} 26. Bd6 {[%clk 0:00:12]}  Qe6 {[%clk 0:00:57]} 27. Bc5 {[%clk 0:00:11]}  Nf4 {[%clk 0:00:57]} 28. Qd1 {[%clk 0:00:08]}  Qg4 {[%clk 0:00:58]} 29. g3 {[%clk 0:00:07]}  Qh3 {[%clk 0:00:47]} 30. gxf4 {[%clk 0:00:06]}  Rxf4 {[%clk 0:00:48]} 31. Bd6 {[%clk 0:00:02]}  Rxf3 {[%clk 0:00:45]} 32. Bg3 {[%clk 0:00:01]}  Rxg3+ {[%clk 0:00:44]} 0-1


[Site "https://www.chess.com"]

[Event "Titled Tuesday Blitz October 19 2021"]
[White "Obrien, Matthew"]
[Black "Shipov, Sergei"]
[WhiteFideId "2059150"]
[BlackFideId "4113624"]
[WhiteElo "2590"]
[BlackElo "2777"]
[Result "0-1"]
[Round "06"]
[TimeControl "180+1"]
[Date "2021.10.19"]
[WhiteClock "0:00:01"]
[BlackClock "0:00:10"]

1. e4 {[%clk 0:03:00]}  e6 {[%clk 0:03:00]} 2. d4 {[%clk 0:03:00]}  d5 {[%clk 0:02:56]} 3. Nc3 {[%clk 0:03:00]}  h6 {[%clk 0:02:56]} 4. Nf3 {[%clk 0:02:59]}  Nf6 {[%clk 0:02:56]} 5. Bd3 {[%clk 0:02:59]}  Bb4 {[%clk 0:02:55]} 6. e5 {[%clk 0:02:50]}  Ne4 {[%clk 0:02:55]} 7. O-O {[%clk 0:02:51]}  Nxc3 {[%clk 0:02:55]} 8. bxc3 {[%clk 0:02:51]}  Bxc3 {[%clk 0:02:55]} 9. Rb1 {[%clk 0:02:50]}  Nc6 {[%clk 0:02:56]} 10. Ba3 {[%clk 0:02:42]}  b6 {[%clk 0:02:52]} 11. Bb5 {[%clk 0:02:35]}  Qd7 {[%clk 0:02:34]} 12. Qd3 {[%clk 0:02:26]}  Ba5 {[%clk 0:02:33]} 13. c4 {[%clk 0:02:21]}  a6 {[%clk 0:02:30]} 14. Bxc6 {[%clk 0:02:07]}  Qxc6 {[%clk 0:02:30]} 15. Rfc1 {[%clk 0:02:02]}  dxc4 {[%clk 0:01:58]} 16. Rxc4 {[%clk 0:01:57]}  Qd7 {[%clk 0:01:59]} 17. d5 {[%clk 0:01:40]}  Bb7 {[%clk 0:01:53]} 18. d6 {[%clk 0:01:10]}  c5 {[%clk 0:01:47]} 19. Rg4 {[%clk 0:00:45]}  g6 {[%clk 0:01:29]} 20. h4 {[%clk 0:00:31]}  h5 {[%clk 0:01:27]} 21. Rf4 {[%clk 0:00:28]}  Bd5 {[%clk 0:01:03]} 22. Ng5 {[%clk 0:00:23]}  Bxa2 {[%clk 0:00:23]} 23. Rb2 {[%clk 0:00:18]}  Bd5 {[%clk 0:00:21]} 24. Rxf7 {[%clk 0:00:17]}  Qxf7 {[%clk 0:00:21]} 25. Nxf7 {[%clk 0:00:18]}  Kxf7 {[%clk 0:00:18]} 26. Qe3 {[%clk 0:00:17]}  Kg7 {[%clk 0:00:16]} 27. Rd2 {[%clk 0:00:17]}  Rae8 {[%clk 0:00:14]} 28. Rd1 {[%clk 0:00:12]}  Rhf8 {[%clk 0:00:14]} 29. Bb2 {[%clk 0:00:11]}  Bc6 {[%clk 0:00:13]} 30. Qg5 {[%clk 0:00:07]}  Rf7 {[%clk 0:00:13]} 31. d7 {[%clk 0:00:06]}  Bxd7 {[%clk 0:00:12]} 32. Rd6 {[%clk 0:00:06]}  c4 {[%clk 0:00:12]} 33. Qe3 {[%clk 0:00:03]}  b5 {[%clk 0:00:11]} 34. Qd4 {[%clk 0:00:01]}  Bc8 {[%clk 0:00:10]} 35. Rxa6 {[%clk 0:00:01]}  Bxa6 {[%clk 0:00:10]} 0-1


[Site "https://www.chess.com"]

[Event "Titled Tuesday Blitz October 19 2021"]
[White "Onyshchuk, Volodymyr"]
[Black "Rzayev, Bahruz"]
[WhiteFideId "14114038"]
[BlackFideId "13403036"]
[WhiteElo "2603"]
[BlackElo "2331"]
[Result "0-1"]
[Round "06"]
[TimeControl "180+1"]
[Date "2021.10.19"]
[WhiteClock "0:00:09"]
[BlackClock "0:00:14"]

1. Nf3 {[%clk 0:03:00]}  Nc6 {[%clk 0:02:57]} 2. g3 {[%clk 0:02:57]}  e5 {[%clk 0:02:57]} 3. Bg2 {[%clk 0:02:58]}  e4 {[%clk 0:02:56]} 4. Ng1 {[%clk 0:02:50]}  d5 {[%clk 0:02:56]} 5. d3 {[%clk 0:02:49]}  exd3 {[%clk 0:02:56]} 6. cxd3 {[%clk 0:02:49]}  Nf6 {[%clk 0:02:57]} 7. Nf3 {[%clk 0:02:48]}  Bb4+ {[%clk 0:02:50]} 8. Nbd2 {[%clk 0:02:45]}  O-O {[%clk 0:02:49]} 9. a3 {[%clk 0:02:45]}  Bd6 {[%clk 0:02:34]} 10. b4 {[%clk 0:02:45]}  a5 {[%clk 0:02:29]} 11. b5 {[%clk 0:02:45]}  Na7 {[%clk 0:02:20]} 12. a4 {[%clk 0:02:44]}  c6 {[%clk 0:02:20]} 13. bxc6 {[%clk 0:02:44]}  Nxc6 {[%clk 0:02:15]} 14. O-O {[%clk 0:02:44]}  Nb4 {[%clk 0:02:14]} 15. Bb2 {[%clk 0:02:42]}  Re8 {[%clk 0:02:12]} 16. Nb3 {[%clk 0:02:41]}  Bd7 {[%clk 0:01:51]} 17. Nbd4 {[%clk 0:02:41]}  Rc8 {[%clk 0:01:50]} 18. Qb3 {[%clk 0:02:40]}  b6 {[%clk 0:01:49]} 19. Rfc1 {[%clk 0:02:38]}  h6 {[%clk 0:01:46]} 20. Rxc8 {[%clk 0:02:29]}  Qxc8 {[%clk 0:01:39]} 21. Rc1 {[%clk 0:02:29]}  Qa6 {[%clk 0:01:37]} 22. Nh4 {[%clk 0:01:58]}  Bc5 {[%clk 0:01:30]} 23. Bf3 {[%clk 0:01:50]}  Qc8 {[%clk 0:01:10]} 24. Nb5 {[%clk 0:01:44]}  Bxb5 {[%clk 0:01:09]} 25. axb5 {[%clk 0:01:44]}  Qe6 {[%clk 0:01:08]} 26. Ng2 {[%clk 0:01:35]}  Ng4 {[%clk 0:01:05]} 27. e3 {[%clk 0:01:24]}  Nxf2 {[%clk 0:00:58]} 28. Kxf2 {[%clk 0:00:39]}  Bxe3+ {[%clk 0:00:58]} 29. Nxe3 {[%clk 0:00:40]}  Qxe3+ {[%clk 0:00:57]} 30. Kg2 {[%clk 0:00:38]}  Nxd3 {[%clk 0:00:41]} 31. Qc3 {[%clk 0:00:19]}  Qf2+ {[%clk 0:00:28]} 32. Kh3 {[%clk 0:00:19]}  Qxb2 {[%clk 0:00:24]} 33. Qxb2 {[%clk 0:00:18]}  Nxb2 {[%clk 0:00:24]} 34. Bxd5 {[%clk 0:00:18]}  Nd3 {[%clk 0:00:20]} 35. Rc7 {[%clk 0:00:17]}  Ne5 {[%clk 0:00:21]} 36. Rb7 {[%clk 0:00:17]}  Rd8 {[%clk 0:00:21]} 37. Be4 {[%clk 0:00:15]}  Nc4 {[%clk 0:00:17]} 38. Rc7 {[%clk 0:00:13]}  Nd6 {[%clk 0:00:17]} 39. Bc6 {[%clk 0:00:13]}  g6 {[%clk 0:00:16]} 40. Kg4 {[%clk 0:00:12]}  h5+ {[%clk 0:00:16]} 41. Kg5 {[%clk 0:00:10]}  Kg7 {[%clk 0:00:16]} 42. h3 {[%clk 0:00:10]}  a4 {[%clk 0:00:15]} 43. Ra7 {[%clk 0:00:09]}  Nc4 {[%clk 0:00:14]} 0-1


[Site "https://www.chess.com"]